Cogmind - Beta 13 @@@ ROGUE MODE // 2024.05.14 @ 19:03:00 Player: N.N.O.G.er Result: Destroyed by H-66 Slayer with Gauss Rifle Performance ------------- Evolutions (5) 2500 Regions Visited (11) 2200 Robots Destroyed (104) 520 Value Destroyed (3630) 3630 Prototype IDs (32) 640 Alien Tech Used (0) 0 Bonus (992) 992 TOTAL SCORE: 10482 Bonus ------- High Alert Combat Kills 72 Follower Combat Kills 180 Entered DSFs 500 Aligned with FarCom 300 Friendly Fire -60 Cogmind --------- Core Integrity 0/1000 Matter 27/300 Energy 80/100 System Corruption 10% Temperature Cool (30) Movement Core (1350) Ox26 Location -5/Factory Parts ------- > --- POWER (1) -------- (None) > --- PROPULSION (6) --- (None) > --- UTILITY (7) ------ Huge Storage Unit > --- WEAPON (3) ------- (None) > --- INVENTORY (25) --- Antimatter Reactor Large Matter Pod (0) Structural Scanner Experimental Targeting Computer Core Analyzer Improved Medium Armor Plating Improved Thermal Shield Advanced Shield Generator Authchip [Propulsion] Authchip [Armor] Trap Reconfigurator Recalibrator Enhanced Gauss Cannon Enhanced Gauss Cannon Enhanced Gauss Cannon Long-range Missile Launcher Plasma Cutter Improved Plasma Cutter Shock Maul Peak State ------------ > --- POWER ------------ Antimatter Reactor > --- PROPULSION ------- Heavy Treads Armored Huge Wheel Armored Huge Wheel > --- UTILITY ---------- Improved Cooling System Huge Storage Unit Modified TNC Experimental Targeting Computer Improved Weapon Cycler Layered Medium Armor Plating Advanced Shield Generator > --- WEAPON ----------- Enhanced Gauss Cannon Enhanced Gauss Cannon Enhanced Gauss Cannon > --- INVENTORY -------- Antimatter Reactor Large Matter Pod Structural Scanner Core Analyzer Improved Medium Armor Plating Improved Medium Armor Plating Improved Medium Armor Plating Layered Medium Armor Plating Damper Plating Improved Thermal Shield Authchip [Propulsion] Authchip [Armor] Trap Reconfigurator Recalibrator Long-range Missile Launcher Long-range Missile Launcher Long-range Missile Launcher Long-range Missile Launcher Tiamat Missile Launcher Plasma Cutter Improved Plasma Cutter Shock Maul [Rating: 99] Favorites ----------- Power Cooled Ion Engine Engine Cooled Ion Engine Power Core Enhanced Nuclear Core Reactor Antimatter Reactor Propulsion Armored Treads Treads Armored Treads Wheel Compact Wheel Utility Huge Storage Unit Device Improved Shield Generator Storage Huge Storage Unit Processor Modified TNC Protection Improved Medium Armor Plating Weapon Heavy Assault Rifle Energy Gun Advanced Beam Rifle Energy Cannon Plasma Cannon Ballistic Gun Heavy Assault Rifle Ballistic Cannon Heavy Mass Driver Launcher Heavy Rocket Launcher Impact Weapon Heavy Flail Slashing Weapon Carbide Saw Build | -11 -10 -10 -10 -9 -8 -7 -7 -7 -6 -6 -5 ------- Run | Yrd Mat Min Exi Min Mat Fac Was Fac Fac DSF Fac Slots Evolved 10 | . . . . . 4 2 . . 2 . 2 Power . | . . . . . . . . . . . . Propulsion 4 | . . . . . 2 . . . 2 . . Utility 5 | . . . . . 2 1 . . . . 2 Weapon 1 | . . . . . . 1 . . . . . Parts Attached 147 | 7 15 10 . 2 41 6 27 11 2 9 17 Power 14 | 1 2 1 . 1 3 . 2 2 . . 2 Engine 8 | 1 2 1 . 1 3 . . . . . . Core 1 | . . . . . . . . 1 . . . Reactor 5 | . . . . . . . 2 1 . . 2 Propulsion 30 | 2 4 2 . . 9 1 6 3 2 . 1 Treads 25 | 2 3 1 . . 9 1 5 2 2 . . Leg . | . . . . . . . . . . . . Wheel 5 | . 1 1 . . . . 1 1 . . 1 Hover . | . . . . . . . . . . . . Flight . | . . . . . . . . . . . . Utility 42 | 2 3 1 . 1 6 4 7 6 . 5 7 Device 21 | 1 . 1 . 1 3 3 5 4 . 3 . Storage 2 | 1 1 . . . . . . . . . . Processor 5 | . 2 . . . 1 . . . . . 2 Hackware . | . . . . . . . . . . . . Protection 14 | . . . . . 2 1 2 2 . 2 5 Artifact . | . . . . . . . . . . . . Weapon 61 | 2 6 6 . . 23 1 12 . . 4 7 Energy Gun 1 | . . . . . 1 . . . . . . Energy Cannon 1 | . . . . . . . 1 . . . . Ballistic Gun 25 | 2 5 3 . . 11 1 3 . . . . Ballistic Cannon 9 | . . . . . 1 . 4 . . 1 3 Launcher 22 | . 1 3 . . 9 . 2 . . 3 4 Special Weapon . | . . . . . . . . . . . . Impact Weapon 2 | . . . . . 1 . 1 . . . . Slashing Weapon 1 | . . . . . . . 1 . . . . Piercing Weapon . | . . . . . . . . . . . . Special Melee Weapon . | . . . . . . . . . . . . Unidentified Prototypes 9 | . . . . . 4 . 1 1 . . 3 Parts Lost 29 | . 1 3 . . 2 . 6 1 . 1 15 Power 5 | . . 2 . . 1 . 1 . . . 1 Propulsion 6 | . . . . . . . 2 1 . . 3 Utility 9 | . 1 1 . . . . 1 . . . 6 Weapon 9 | . . . . . 1 . 2 . . 1 5 Highest Loss Streak 14 | . 1 1 . . 2 . 6 1 . 1 14 To Critical Strikes 2 | . . 1 . . . . 1 . . . . Average Slot Usage (%) 90 | . 85 87 85 96 99 94 88 81 77 79 77 Engine 5 | . 6 7 . 10 8 7 1 . . . . Reactor 1 | . . . . . . . 5 6 6 6 4 Treads 23 | . 22 15 14 14 36 30 22 18 17 20 6 Wheel 4 | . 5 12 14 14 . . . 1 6 6 9 Device 12 | . 14 9 14 14 12 7 12 12 13 8 16 Storage 8 | . 6 14 14 14 9 7 7 7 6 6 5 Processor 6 | . 6 . . . 8 7 7 7 6 6 7 Protection 5 | . . . . . 5 11 7 9 6 11 8 Ballistic Gun 15 | . 22 26 28 28 14 21 15 . . . . Ballistic Cannon 3 | . . . . . . . 4 15 13 6 12 Naked Turns . | . . . . . . . . . . . . Heaviest Build 148 | 12 89 91 84 90 110 112 139 139 128 142 148 Greatest Support 118 | 40 40 40 16 16 83 88 118 118 28 110 70 Greatest Overweight (x) 44 | . 5 5 5 5 1 1 6 4 4 5 44 Average Overweight (x) 2 | . 1 4 5 5 1 1 1 1 4 4 2 Largest Inventory Capacity 25 | 8 25 25 25 25 25 25 25 25 25 25 25 Average Capacity 23 | 7 12 25 25 25 25 25 25 25 25 25 25 Most Carried 25 | 1 12 18 24 25 25 25 25 25 25 25 25 Average Carried 21 | . 5 15 19 23 24 24 24 24 23 23 24 Final Capacity 25 | 8 25 25 25 25 25 25 25 25 25 25 25 Final Carried 25 | 1 12 18 24 24 25 25 25 25 23 25 19 Class Distribution -------------------- 51% | Mutant 21% | Tank 13% | Skirmisher 11% | Gunner Dominant Class ---------------- Mutant | -10/Materials Mutant | -10/Mines Mutant | -10/Exiles Mutant | -9/Mines Mutant | -8/Materials Tank | -7/Factory Gunner | -7/Waste Tank | -7/Factory Tank | -6/Factory Tank | -6/DSF Tank | -5/Factory Resources | -11 -10 -10 -10 -9 -8 -7 -7 -7 -6 -6 -5 ----------- Run | Yrd Mat Min Exi Min Mat Fac Was Fac Fac DSF Fac Matter Collected 3769 | 233 464 268 . 32 846 89 545 393 . 289 610 Remotely . | . . . . . . . . . . . . Salvage Created 4087 | 108 623 70 . . 933 89 583 392 . 555 734 Parts 164 | 7 35 14 . . 45 6 2 21 . 19 15 Haulers Intercepted 5 | . 2 . . . 1 . . 1 . . 1 Recyclers Shooed 11 | . 2 . . 1 2 . . . . . 6 Parts Field Recycled . | . . . . . . . . . . . . Retrieved Matter . | . . . . . . . . . . . . Parts Self-Destructed . | . . . . . . . . . . . . Prevented . | . . . . . . . . . . . . Kills | -11 -10 -10 -10 -9 -8 -7 -7 -7 -6 -6 -5 ------- Run | Yrd Mat Min Exi Min Mat Fac Was Fac Fac DSF Fac Combat Hostiles Destroyed 72 | . 9 12 . . 21 2 1 6 . 11 10 Melee 2 | . . . . . 1 . . . . . 1 Guns 18 | . 7 3 . . 6 2 . . . . . Cannons 14 | . . . . . 1 . . 5 . 4 4 AOE 38 | . 2 9 . . 13 . 1 1 . 7 5 Classes Destroyed 19 | 2 5 3 . . 1 1 1 1 . 4 1 Worker 4 | . 1 . . . 2 . . . . . 1 Builder 2 | . 1 . . . . . . . . . 1 Tunneler 5 | 2 . 1 . . 2 . . . . . . Hauler 5 | . 2 . . . 1 . . 1 . . 1 Recycler 12 | 1 1 . . . 2 . . 3 . . 5 Operator 1 | . . . . . . . . 1 . . . Watcher 4 | . 1 . . . 1 . . 1 . . 1 Swarmer 13 | . . 9 . . . . . . . . 4 Saboteur 1 | . . . . . . . . . . . 1 Grunt 34 | . 9 . . . 16 . . 4 . 3 2 Brawler 1 | . . . . . . . . . . 1 . Sentry 5 | . . . . . 5 . . . . . . Demolisher 2 | . . 2 . . . . . . . . . Specialist 4 | . . . . . . . . . . 3 1 Hunter 4 | . . . . . . . . . . 3 1 Programmer 5 | . . . . . . 2 . 2 . . 1 Heavy 1 | . . . . . . . . . . 1 . Compactor 1 | . . . . . . . 1 . . . . Assembled 1 | . . 1 . . . . . . . . . Best Kill Streak 13 | 3 6 3 . . 5 1 1 3 . 5 13 Combat Bots Only 6 | . 4 3 . . 4 1 1 2 . 5 6 Max Kills in Single Turn 4 | 1 1 3 . . 4 1 1 1 . 3 3 Gunslinging . | . . . . . . . . . . . . Exploded 4 | . 1 3 . . 4 . 1 1 . 3 2 Melee 1 | . . . . . 1 . . . . . 1 Uniques/NPCs Destroyed . | . . . . . . . . . . . . Combat | -11 -10 -10 -10 -9 -8 -7 -7 -7 -6 -6 -5 -------- Run | Yrd Mat Min Exi Min Mat Fac Was Fac Fac DSF Fac Hostile Shots Fired 577 | . 43 21 . . 78 25 6 17 . 36 351 Missed 157 | . 9 2 . . 21 5 . 5 . 13 102 Damage Taken 6953 | . 466 442 . . 722 291 389 411 . 415 3817 Core 1226 | . 12 26 . . 44 17 . 111 . 15 1001 Absorbed by Shields 616 | . . . . . 250 8 . . . 96 262 Reduced by Siege Mode 22 | . . . . . . . . 22 . . . Ignored by Resistances 353 | . . . . . 88 . . . . . 265 Core Remaining (%) 91 | 100 . . . 84 92 . . 81 . 98 . Volleys Fired 206 | 7 48 11 . 2 49 10 12 24 . 17 26 Largest 3 | 2 2 2 . 2 2 3 3 2 . 3 3 Hottest 171 | 40 50 50 . 44 85 71 127 114 . 117 171 Shots Fired 432 | 14 93 22 . 4 96 30 30 43 . 31 69 Gun 258 | 14 89 17 . 4 78 30 26 . . . . Cannon 125 | . . . . . 2 . 2 43 . 19 59 Launcher 49 | . 4 5 . . 16 . 2 . . 12 10 Special . | . . . . . . . . . . . . Kinetic 378 | 14 89 17 . 4 76 30 27 43 . 19 59 Thermal 5 | . . . . . 4 . 1 . . . . Explosive 49 | . 4 5 . . 16 . 2 . . 12 10 Electromagnetic . | . . . . . . . . . . . . Robot Hit Streak 19 | 8 14 5 . 9 9 7 14 15 . 8 19 Robot Miss Streak 5 | 1 5 2 . 2 5 1 2 2 . 3 3 Penetration Max 1 | . . . . . . . . . . 1 1 Secondary Targets 2 | . 1 1 . . . . . . . . . Max Gunslinging Chain 1 | . 1 1 . . . . . . . . . Shots Hit Robots 305 | 11 65 11 . 3 68 23 26 32 . 20 46 Core Hits 204 | 4 29 16 . 1 61 4 8 16 . 25 40 Critical Kills 1 | . . . . . 1 . . . . . . Critical Parts Destroyed 1 | . 1 . . . . . . . . . . Critical Strikes 17 | . 1 . . . 1 . . 6 . . 9 Destroy 1 | . 1 . . . . . . . . . . Blast 15 | . . . . . . . . 6 . . 9 Smash 1 | . . . . . 1 . . . . . . Melee Attacks 5 | . . . . . 4 . 1 . . . . Impact 4 | . . . . . 4 . . . . . . Slashing 1 | . . . . . . . 1 . . . . Piercing . | . . . . . . . . . . . . Sneak Attacks 1 | . . . . . 1 . . . . . . Combat Hostiles . | . . . . . . . . . . . . Follow-up Attacks . | . . . . . . . . . . . . Damage Inflicted 14164 | 121 1018 630 . 54 3350 487 868 1536 . 2208 3892 Guns 2766 | 121 646 90 . 54 844 487 524 . . . . Cannons 3710 | . . . . . 52 . 24 1271 . 771 1592 Explosions 7390 | . 361 540 . . 2222 . 300 265 . 1437 2265 Melee 244 | . . . . . 224 . 20 . . . . Ramming 54 | . 11 . . . 8 . . . . . 35 Kinetic 6410 | 121 646 90 . 54 854 487 524 1271 . 771 1592 Thermal 473 | . . 142 . . 42 . 24 265 . . . Explosive 6835 | . 361 398 . . 2222 . 300 . . 1437 2117 Electromagnetic 148 | . . . . . . . . . . . 148 Impact 224 | . . . . . 224 . . . . . . Slashing 20 | . . . . . . . 20 . . . . Piercing . | . . . . . . . . . . . . Highest Corruption 9 | . . . . . 1 3 3 3 . 1 9 Average Corruption 2 | . . . . . 1 1 3 2 . 1 2 Corruption Purged 3 | . . . . . . . . 3 . . . Corruption Blocked . | . . . . . . . . . . . . Effects 48 | . . . . . 12 1 19 15 . . 1 Message Errors 12 | . . . . . 3 1 6 2 . . . Matter Fused 6 | . . . . . 2 . 3 1 . . . Heat Flow Errors 9 | . . . . . . . 2 7 . . . Energy Discharges 11 | . . . . . 3 . 5 3 . . . Parts Rejected 1 | . . . . . 1 . . . . . . Parts Fused 1 | . . . . . . . . 1 . . . Data Loss (minor) 4 | . . . . . 1 . 1 1 . . 1 Data Loss (major) 1 | . . . . . 1 . . . . . . Misfires 3 | . . . . . 1 . 2 . . . . Overload Shots . | . . . . . . . . . . . . Overflow Damage 516 | . 14 23 . . 156 . . 150 . 59 114 Projectiles 182 | . . . . . 34 . . 53 . 27 68 Explosions 235 | . 14 23 . . 23 . . 97 . 32 46 Melee 99 | . . . . . 99 . . . . . . Knockbacks 26 | . . . . . 2 . . 7 . 2 15 Impact 1 | . . . . . 1 . . . . . . Kinetic 24 | . . . . . . . . 7 . 2 15 Secondary 1 | . . . . . 1 . . . . . . Self-Inflicted Damage 727 | . 10 92 . . 179 . 118 226 . . 102 Shots 21 | . 1 5 . . 7 . 2 3 . . 3 Rammed 10 | . 2 . . . 1 . . . . . 7 Targets Rammed 11 | . 2 . . . 1 . . . . . 8 Kicked . | . . . . . . . . . . . . Crushed 1 | . . . . . . . . . . . 1 Highest Temperature 322 | . 20 12 . 4 90 . 229 322 . 1 203 Average Temperature 58 | . 6 9 . 3 26 . 57 82 . 1 53 Received Heat Transfer 1637 | . 294 . . . 343 . . 117 . 19 864 Effects 2 | . . . . . . . . 2 . . . Interference 2 | . . . . . . . . 2 . . . Siege Activations 6 | . . . . . . . . 3 . 2 1 Total Turns 48 | . . . . . . . . 34 . 7 7 Longest Duration 18 | . . . . . . . . 18 . 6 7 Robots Corrupted . | . . . . . . . . . . . . Combat Hostiles . | . . . . . . . . . . . . Parts Fried 1 | . . . . . . . . . . . 1 Impact Corruptions 4 | . . . . . 4 . . . . . . Robots Melted . | . . . . . . . . . . . . Combat Hostiles . | . . . . . . . . . . . . Parts Melted . | . . . . . . . . . . . . Heat Transferred 474 | . . 250 . . 74 . 50 100 . . . Parts Sabotaged . | . . . . . . . . . . . . Parts Stolen . | . . . . . . . . . . . . Parts Stripped . | . . . . . . . . . . . . Power Chain Reactions . | . . . . . . . . . . . . Alert | -11 -10 -10 -10 -9 -8 -7 -7 -7 -6 -6 -5 ------- Run | Yrd Mat Min Exi Min Mat Fac Was Fac Fac DSF Fac Peak Influence 494 | 15 312 199 . 121 431 246 86 407 198 494 444 Initial 259 | . 9 63 . . . 186 86 . 198 138 259 Average 136 | 7 143 147 . 59 155 200 22 85 198 327 244 Maximum Alert Level 2 | . 1 . . . 2 1 . 2 . 2 2 Low Security (%) 74 | 100 78 100 . 100 62 59 100 89 100 17 30 Level 1 22 | . 21 . . . 33 40 . 9 . 52 67 Level 2 2 | . . . . . 3 . . 1 . 30 2 Level 3 . | . . . . . . . . . . . . Level 4 . | . . . . . . . . . . . . Level 5 . | . . . . . . . . . . . . High Security . | . . . . . . . . . . . . Max Security . | . . . . . . . . . . . . Sterilizations 1 | . . . . . . . . . . 1 . Squads Dispatched 18 | . 1 . . 1 6 2 . 4 . 2 2 Investigation 5 | . 1 . . 1 2 1 . . . . . Extermination 3 | . . . . . . 1 . 1 . . 1 Reinforcement 6 | . . . . . 1 . . 2 . 2 1 Assault 1 | . . . . . . . . 1 . . . Garrison 3 | . . . . . 3 . . . . . . Intercept . | . . . . . . . . . . . . Searches Triggered . | . . . . . . . . . . . . Construction Impeded 1 | . . . . . . . . . . . 1 Haulers Reinforced 1 | . . . . . . . . 1 . . . Active Scanning Responses . | . . . . . . . . . . . . Cargo Convoy Interrupts 1 | . . . . . . . . . . . 1 Stealth | -11 -10 -10 -10 -9 -8 -7 -7 -7 -6 -6 -5 --------- Run | Yrd Mat Min Exi Min Mat Fac Was Fac Fac DSF Fac Distress Signals 4 | . 1 . . . 2 . . . . . 1 Communications Jammed . | . . . . . . . . . . . . Distress Signals . | . . . . . . . . . . . . Times Spotted 131 | . 19 12 . 4 46 3 1 9 . 11 26 Peak Tracking Total 13 | . 6 3 . 2 5 1 1 2 . 5 13 Tactical Retreats 7 | . 5 . . . 1 . . . . . 1 Traps | -11 -10 -10 -10 -9 -8 -7 -7 -7 -6 -6 -5 ------- Run | Yrd Mat Min Exi Min Mat Fac Was Fac Fac DSF Fac Traps Triggered 8 | . 1 . . . . 1 . 1 . 3 2 Indirectly . | . . . . . . . . . . . . Trap Hack Attempts . | . . . . . . . . . . . . Triggered . | . . . . . . . . . . . . Disarmed . | . . . . . . . . . . . . Reprogrammed . | . . . . . . . . . . . . Reused . | . . . . . . . . . . . . Traps Extracted . | . . . . . . . . . . . . Installed . | . . . . . . . . . . . . Triggered . | . . . . . . . . . . . . Machines | -11 -10 -10 -10 -9 -8 -7 -7 -7 -6 -6 -5 ---------- Run | Yrd Mat Min Exi Min Mat Fac Was Fac Fac DSF Fac Machines Disabled 17 | . . 3 . . 2 . . 7 . 1 4 Max in Single Turn 5 | . . 2 . . 1 . . 5 . 1 2 Garrison Access 1 | . . . . . . . . 1 . . . Machines Repaired . | . . . . . . . . . . . . Machines Dismantled . | . . . . . . . . . . . . Machines Sabotaged . | . . . . . . . . . . . . Overloaded Fab Kills . | . . . . . . . . . . . . Hacking | -11 -10 -10 -10 -9 -8 -7 -7 -7 -6 -6 -5 --------- Run | Yrd Mat Min Exi Min Mat Fac Was Fac Fac DSF Fac Machines Accessed 23 | . 7 1 5 1 6 1 . 1 1 . . Terminals 14 | . 6 1 . . 5 . . 1 1 . . Fabricators 1 | . . . . . . 1 . . . . . Repair Stations . | . . . . . . . . . . . . Recycling Units 2 | . 1 . . . 1 . . . . . . Scanalyzers . | . . . . . . . . . . . . Garrison Access . | . . . . . . . . . . . . Total Hacks 62 | . 22 4 13 1 16 4 . 1 1 . . Successful 37 | . 10 2 13 1 9 1 . . 1 . . Failed 24 | . 11 2 . . 7 3 . 1 . . . Catastrophic 4 | . . . . . 2 1 . 1 . . . Database Lockouts 1 | . 1 . . . . . . . . . . Manual 36 | . 15 3 1 . 14 2 . 1 . . . Terminals 37 | . 17 4 . . 14 . . 1 1 . . Fabricators 4 | . . . . . . 4 . . . . . Repair Stations . | . . . . . . . . . . . . Recycling Units 7 | . 5 . . . 2 . . . . . . Scanalyzers . | . . . . . . . . . . . . Garrison Access . | . . . . . . . . . . . . Terminal Hacks 25 | . 5 1 13 1 4 . . . 1 . . Record 12 | . . . 12 . . . . . . . . Robot Analysis 4 | . 1 1 . . 2 . . . . . . Open Door 1 | . . . . 1 . . . . . . . Open DSF 1 | . . . . . . . . . 1 . . Branch Access Points 1 | . . . . . 1 . . . . . . Locate Traps 3 | . 2 . . . 1 . . . . . . Hauler Manifests 1 | . 1 . . . . . . . . . . Registered Components 1 | . 1 . . . . . . . . . . Derelict Proto ID Bank 1 | . . . 1 . . . . . . . . Fabricator Hacks 1 | . . . . . . 1 . . . . . Network Status 1 | . . . . . . 1 . . . . . Repair Station Hacks . | . . . . . . . . . . . . Recycling Unit Hacks 2 | . 1 . . . 1 . . . . . . Retrieve Components 2 | . 1 . . . 1 . . . . . . Scanalyzer . | . . . . . . . . . . . . Garrison Access Hacks . | . . . . . . . . . . . . Unauthorized Hacks 9 | . 4 1 . . 4 . . . . . . Terminals 8 | . 3 1 . . 4 . . . . . . Track 2 | . 1 1 . . . . . . . . . Assimilate 1 | . . . . . 1 . . . . . . Botnet 5 | . 2 . . . 3 . . . . . . Fabricators . | . . . . . . . . . . . . Repair Stations . | . . . . . . . . . . . . Recycling Units 1 | . 1 . . . . . . . . . . Mask 1 | . 1 . . . . . . . . . . Scanalyzers . | . . . . . . . . . . . . Garrison Access . | . . . . . . . . . . . . Data Cores Recovered . | . . . . . . . . . . . . Used . | . . . . . . . . . . . . Hacking Detections 14 | . 6 1 . . 5 1 . 1 . . . Full Trace Events 3 | . . . . . 2 1 . . . . . Feedback Events 1 | . . . . . 1 . . . . . . Corruption 1 | . . . . . 1 . . . . . . Feedback Blocked . | . . . . . . . . . . . . Robot Schematics Acquired . | . . . . . . . . . . . . Robots Built . | . . . . . . . . . . . . Authchips . | . . . . . . . . . . . . Time . | . . . . . . . . . . . . Total Robot Build Rating . | . . . . . . . . . . . . Part Schematics Acquired . | . . . . . . . . . . . . Parts Built . | . . . . . . . . . . . . Authchips . | . . . . . . . . . . . . Time . | . . . . . . . . . . . . Total Part Build Rating . | . . . . . . . . . . . . Parts Repaired . | . . . . . . . . . . . . Time . | . . . . . . . . . . . . Parts Recycled . | . . . . . . . . . . . . Recycled Matter . | . . . . . . . . . . . . Retrieved Matter . | . . . . . . . . . . . . Retrieved Components 12 | . 2 . . . 10 . . . . . . Parts Scanalyzed . | . . . . . . . . . . . . Part Schematics Acquired . | . . . . . . . . . . . . Parts Damaged . | . . . . . . . . . . . . Bothacking | -11 -10 -10 -10 -9 -8 -7 -7 -7 -6 -6 -5 ------------ Run | Yrd Mat Min Exi Min Mat Fac Was Fac Fac DSF Fac Used RIF Installer . | . . . . . . . . . . . . Robots Hacked . | . . . . . . . . . . . . Non-combat . | . . . . . . . . . . . . Combat . | . . . . . . . . . . . . Robot Hacks Applied . | . . . . . . . . . . . . Relay Couplers Released . | . . . . . . . . . . . . Fabnet Peak Effective % . | . . . . . . . . . . . . Robots Rewired . | . . . . . . . . . . . . Allies Hacked . | . . . . . . . . . . . . Hacks Repelled . | . . . . . . . . . . . . Allies | -11 -10 -10 -10 -9 -8 -7 -7 -7 -6 -6 -5 -------- Run | Yrd Mat Min Exi Min Mat Fac Was Fac Fac DSF Fac Total Allies 3 | . . 3 . . . . . . . . . Largest Group 3 | . . 3 3 3 3 . . . . . . Highest-Rated Group 40 | . . 40 40 40 40 . . . . . . Highest-Rated Ally 16 | . . 16 16 16 16 . . . . . . Total Orders . | . . . . . . . . . . . . Ally Attacks 36 | . . . . 18 18 . . . . . . Total Damage 443 | . . . . 246 197 . . . . . . Kills 7 | . . . . 5 2 . . . . . . Allies Corrupted . | . . . . . . . . . . . . Allies Melted 1 | . . 1 . . . . . . . . . Intel | -11 -10 -10 -10 -9 -8 -7 -7 -7 -6 -6 -5 ------- Run | Yrd Mat Min Exi Min Mat Fac Was Fac Fac DSF Fac Robot Analysis Total 3 | . 1 1 . . 1 . . . . . . Derelict Logs Recovered 2 | . . 2 . . . . . . . . . Drone Launches . | . . . . . . . . . . . . Drone Recoveries . | . . . . . . . . . . . . Exploration | -11 -10 -10 -10 -9 -8 -7 -7 -7 -6 -6 -5 ------------- Run | Yrd Mat Min Exi Min Mat Fac Was Fac Fac DSF Fac Turns Passed 9783 | 121 869 968 579 476 3088 381 1111 1135 50 349 656 Spaces Moved 4384 | 65 727 473 329 237 999 138 440 459 31 146 340 Core 550 | 12 537 . . . . . . . . . 1 Treads 2008 | 53 53 34 . . 999 138 399 319 . 9 4 Legs . | . . . . . . . . . . . . Wheels 1826 | . 137 439 329 237 . . 41 140 31 137 335 Hover . | . . . . . . . . . . . . Flight . | . . . . . . . . . . . . Fastest Speed 50 | 50 50 175 175 175 240 247 163 160 160 160 130 Average Speed 186 | 139 86 185 175 175 244 247 230 217 160 174 146 Slowest Speed 2250 | 160 175 320 175 175 247 247 247 243 160 246 2250 Overloaded Moves . | . . . . . . . . . . . . Propulsion Burnouts . | . . . . . . . . . . . . Robots Hopped . | . . . . . . . . . . . . Cave-ins Triggered . | . . . . . . . . . . . . Exploration Rate (%) 46 | 6 88 53 71 43 79 4 95 16 1 94 11 Regions Visited 11 Branch Regions 3 Pre-discovered Areas 2 | . . 1 1 . . . . . . . . Known Exits Taken 1 | . . . . . . . . . 1 . . Unknown Exits Taken 7 | 1 1 1 1 1 1 . . 1 . . . Scrap Searched 1 | . . 1 . . . . . . . . . Spaces Dug 2 | . . . . . . . . 2 . . . Terrain Destroyed 429 | . 21 40 . . 128 . 20 78 . 107 35 Melee . | . . . . . . . . . . . . Projectile 24 | . . . . . . . 1 8 . 5 10 AOE 405 | . 21 40 . . 128 . 19 70 . 102 25 Terrain Rammed . | . . . . . . . . . . . . Walls Destroyed . | . . . . . . . . . . . . Machines Disabled . | . . . . . . . . . . . . Actions | -11 -10 -10 -10 -9 -8 -7 -7 -7 -6 -6 -5 --------- Run | Yrd Mat Min Exi Min Mat Fac Was Fac Fac DSF Fac Total 5587 | 79 888 540 333 296 1543 158 515 546 32 208 449 Wait 629 | . 66 39 2 47 381 2 . 40 . 11 41 Move 4374 | 64 726 472 328 236 998 138 439 458 30 145 340 Hop . | . . . . . . . . . . . . Pick Up 94 | 1 16 8 3 5 32 1 9 3 . 11 5 Fast Attach 48 | 7 2 . . . 8 1 15 8 . 1 6 Attach 37 | . 7 2 . 1 5 1 7 1 2 4 7 Detach 14 | . 7 . . . 2 . 1 2 . 2 . Swap 62 | . 6 8 . 1 28 4 5 2 . 4 4 Drop 95 | . 8 . . 4 35 1 20 8 . 9 10 Fire 206 | 7 48 11 . 2 49 10 12 24 . 17 26 Melee 5 | . . . . . 4 . 1 . . . . Ram 2 | . 2 . . . . . . . . . . Kick . | . . . . . . . . . . . . Crush 9 | . . . . . 1 . . . . . 8 Escape Stasis 6 | . . . . . . . . . . 4 2 Rewire 6 | . . . . . . . 6 . . . . Trap . | . . . . . . . . . . . . Miscellaneous . | . . . . . . . . . . . . Route ------- -11/Scrapyard -10/Materials (discovered 4 exits: [*Mat x2] / *Min x2) -10/Mines (discovered 2 exits: [*Mat] / *Exi) -10/Exiles (discovered 2 exits: *Min x2) -9/Mines -8/Materials (discovered 2 exits: *Fac x2) -7/Factory -7/Waste -7/Factory -6/Factory -6/DSF -5/Factory (discovered 1 exit: [*Fac]) History --------- Turn | Location | Event 7 | -11/Scrapyard | Discovered new exit (range 16) 122 | -11/Scrapyard | Entered Materials 227 | -10/Materials | Discovered new exit (range 15) 255 | -10/Materials | Central database locked down 294 | -10/Materials | Discovered new exit (range 14) 304 | -10/Materials | Build established: Mutant 632 | -10/Materials | Discovered new exit (range 6) 982 | -10/Materials | Discovered new exit (range 6) 991 | -10/Materials | Entered Mines 1048 | -10/Mines | Assembled infested the area 1053 | -10/Mines | Assisted by a Guerilla fighting off Assembled 1348 | -10/Mines | Deemed a non-threat by the Exiles lab entrance 1350 | -10/Mines | Discovered new exit (range 5) 1452 | -10/Mines | A weapon hastily lodged in a ceiling crevice suddenly fell to the ground 1521 | -10/Mines | Discovered new exit (range 14) 1550 | -10/Mines | Assisted by bots powering up and referring to "LRC-V3" 1648 | -10/Mines | Learned location of Mines (-9) 1959 | -10/Mines | Entered Exiles 1959 | -10/Exiles | Accompanied by 3 allies 1984 | -10/Exiles | Discovered new exit (range 15) 2012 | -10/Exiles | Met 8R-AWN 2038 | -10/Exiles | Met EX-HEX 2106 | -10/Exiles | Met EX-DEC 2148 | -10/Exiles | Learned location of Zion (-6) 2178 | -10/Exiles | Met EX-BIN 2285 | -10/Exiles | Aligned with FarCom system 2287 | -10/Exiles | Given EX-Vault access code 2334 | -10/Exiles | Opened EX-Vault 2346 | -10/Exiles | Found Trap Reconfigurator 2351 | -10/Exiles | Found Flying Fortress v7 2359 | -10/Exiles | Found Modified TNC 2393 | -10/Exiles | Warned to stay clear of 0b10 Research branches 2523 | -10/Exiles | Discovered new exit (range 10) 2538 | -10/Exiles | Stole three prototypes: Flying Fortress v7, Modified TNC, Trap Reconfigurator 2538 | -10/Exiles | Entered Mines 2538 | -9/Mines | Accompanied by 3 allies 2590 | -9/Mines | Met a Derelict shopkeep closing up shop 2822 | -9/Mines | Discovered new exit (range 7) 2824 | -9/Mines | Received a Rocket Launcher from a helpful Derelict 3014 | -9/Mines | Entered Materials 3014 | -8/Materials | Accompanied by 3 allies 3014 | -8/Materials | Evolved 4 slots: Propulsion x2, Utility x2 3311 | -8/Materials | Lost 3 allies 3350 | -8/Materials | Build established: Skirmisher 4240 | -8/Materials | Discovered new exit (range 8) 4455 | -8/Materials | Build established: Mutant 4832 | -8/Materials | Garrison activated, responded to threat 4848 | -8/Materials | Discovered new exit (range 16) 6102 | -8/Materials | Entered Factory 6102 | -7/Factory | Evolved 2 slots: Utility x1, Weapon x1 6104 | -7/Factory | FarCom data flow suspended 6483 | -7/Factory | Sucked down chute 6483 | -7/Factory | Entered Waste 6483 | -7/Waste | The area was eerily silent 6517 | -7/Waste | Build established: Tank 6683 | -7/Waste | A Compactor rumbled back to life 6683 | -7/Waste | Crushed by Compactor (1 part destroyed, 2 dropped) 6685 | -7/Waste | Spotted C-40 Crusher 6686 | -7/Waste | Crushed by Compactor (1 part destroyed, 1 dropped) 6689 | -7/Waste | Crushed by Compactor (1 part destroyed, 2 dropped) 6695 | -7/Waste | Crushed by Compactor (1 part destroyed) 6698 | -7/Waste | Crushed by Compactor (1 part destroyed) 6700 | -7/Waste | Destroyed C-40 Crusher 6729 | -7/Waste | Lost 6 parts (1p2n1u2w) 6773 | -7/Waste | Discovered new exit (range 12) 6832 | -7/Waste | Found Damper Plating 7117 | -7/Waste | Build established: Gunner 7594 | -7/Waste | Entered Factory 8241 | -7/Factory | Build established: Tank 8709 | -7/Factory | Discovered new exit (range 9) 8729 | -7/Factory | Entered another Factory area 8729 | -6/Factory | Evolved 2 slots: Propulsion x2 8778 | -6/Factory | Identified exit to DSF 8779 | -6/Factory | Entered DSF 8806 | -6/DSF | Additional patrols routed to DSF 9007 | -6/DSF | Discovered new exit (range 15) 9050 | -6/DSF | Sterilization system engaged 9070 | -6/DSF | Ambient heat levels rising (+10) 9085 | -6/DSF | Ambient heat levels rising (+10) 9100 | -6/DSF | Ambient heat levels rising (+10) 9115 | -6/DSF | Ambient heat levels rising (+10) 9128 | -6/DSF | Entered Factory 9128 | -5/Factory | Evolved 2 slots: Utility x2 9460 | -5/Factory | Discovered new exit (range 14) 9513 | -5/Factory | Found Prototype Processor 9513 | -5/Factory | Identified Exp. Targeting Computer 9516 | -5/Factory | Found Exp. Targeting Computer 9523 | -5/Factory | Found Exp. Targeting Computer 9739 | -5/Factory | Cargo convoy interrupted 9780 | -5/Factory | Core integrity fell below 50% 9783 | -5/Factory | Core integrity fell below 20% 9784 | -5/Factory | Destroyed by H-66 Slayer with Gauss Rifle Last Messages --------------- 09768_ P-70 Sage destroyed. 09769_ K-01 Serf collects debris. 09769_ Penetrated by Slug. 09770_ M-28 Smith repairs X-77 Beamer. 09772_ K-01 Serf collects debris. 09772_ Penetrated by Slug. 09774_ P-70 Sage resets K-01 Serf, system corruption cleaned. 09775_ Penetrated by Slug. 09775_ Critical hit (Destroy). 09776_ Penetrated by Slug. 09776_ K-01 Serf collects debris. 09777_ K-01 Serf destroyed. 09778_ Tiamat Missile Launcher destroyed. 09778_ Damper Plating destroyed. 09779_ P-70 Sage resets G-50 Soldier, system corruption cleaned. 09779_ Penetrated by Slug. 09783_ Exp. Targeting Computer destroyed. 09784_ Penetrated by Slug. Map ----- +----------------------------------------------------+ | ????????????????????????# #?????????????? | | ????????????????????????# +?????????????? | | ????????????????????????# #?????????????? | | ???????????????########## #??########???? | | ???????????????# # #? #???? | | ???????????????# !! # #? #???? | | ???????????????# !| # # #???? | | ???????????????# ! # # #???? | | ???????????????# + + #???? | | ???????????????# ! # # #???? | | ???????????????# # # #???? | | ???????????????# #[ #? #???? | | ???????????????# # #?#########???? | | ####################"#### #?????????????? | | # # #?# #?????????????? | | # # """ """ "## #?????????????? | | # # """ """ #%#! !#?????????????? | | # # """ """ #=# ##????????????? | | # ! # ### #?##???? ????? | | #! !! #+##+########## # # #???? | | # !! # % ! [ !%= | | # # *% x [ | | # """""" + % %* p % | | # """""" # p ! | | # """""" # gg % h | | # """""" ## @! ! p ? | | # ## #########;#; p ? | | # ## #???????#### " ? | | # ## #??????????#% %" " = ?? | | # " " ## ############ ?? | | # "Y" # # """ = # ??? | | # """ # # ""R" # ""?? | | ########## < + "" " * # ?? | | ?????????# # + ? | | ?????????# # """ """ # #???? | | ?????????####### """ """ # #???? | | ???????????????# """ """*# #???? | | ???????????????# #= #???? | | ??????????????############ ############?? | | ??????????????? ?# #????????????? | | ???????????????] ?# #???????????? | | ???????????????? # #???????????? | | ?????????????????? """ # #???????????? | | ?????????????????? """ + #######?????? | | ?????????????????? """ # | | ???????????????? # #######??????# | | ???????????????""" """ ??# ############## | | ????????????????"" ""????# # # | | ???????????????????"?????# # # | | ?????????????????????????# + # | +----------------------------------------------------+ Best States ------------- Heat Dissipation 67 Energy Generation 21 Energy Capacity 325 Matter Stores 300 Matter Capacity 300 Sight Range 16 Robot Scan Range 14 Terrain Scan Density 10 Armor Coverage 1600 Resistance: TH 10 Resistance: EM 90 Weapon Cycling 20 Evasion (%) 50 Targeting Accuracy 12 Recoil Reduction 4 Kinecelleration 30 Authchip Count 2 Item Schematics ----------------- None Robot Schematics ------------------ None Fabricated ------------ Nothing Alien Tech Used ----------------- None Achievements -------------- None Challenges ------------ None Game ------ Seed QuantumAntimissileCloak Manual? 0 Play Time 02:00:48 Cumulative 93.0 hours Start 2024.05.13 @ 18:07:17 End 2024.05.14 @ 19:03:00 Sessions 5 Manual Loads 0 Difficulty Rogue Special Mode None Game No. 47 Rogue 47 Adventurer 0 Explorer 0 Win Type - Total 1 Types 0/0/1/0/0/0/0/0/0 Lore% 54 Gallery% 65 Achievement% 48 Wizard Run 0 Options --------- Layout 1 ASCII 0 Keyboard 0 Movement Mouse Keybinds 0 Fullscreen 1 Font 24/Smallcaps Map View 50x35 Zoom Use 0% Tactical HUD 1 Map Filters NONE Filters NONE Steam 1 RUN: ac2ff389-fed5-4cfd-8ccc-77da00bde15c